fUST/lending_fUST_20250616
["ID","MTS","AMOUNT","RATE_DAILY","PERIOD"]
[366133612,1750080636041,-460.0,0.00021369,4]
[366133613,1750080636051,-589.42,0.00021369,4]
[366133614,1750080636061,-846.16,0.00021369,4]
[366133615,1750080636071,-460.0,0.00021369,4]
[366133616,1750080636082,-335.48199391,0.00021369,4]
[366133617,1750080636092,-977.15,0.00021369,4]
[366133618,1750080636101,-950.82,0.00021369,4]
[366133619,1750080636112,-514.48,0.00021369,4]
[366133620,1750080636123,-530.28,0.00021369,4]
[366133621,1750080636135,-188.49155914,0.00021433,2]
[366133622,1750080636145,-1750.456,0.00021438,2]
[366133623,1750080636155,-5000.0,0.00021438,2]
[366133624,1750080636167,-207.4,0.00021438,2]
[366133625,1750080636176,-500.0,0.00021438,2]
[366133626,1750080636186,-500.0,0.00021438,2]
[366133627,1750080636195,-500.0,0.00021438,2]
[366133628,1750080636205,-500.0,0.00021438,2]
[366133629,1750080636214,-500.0,0.00021438,2]
[366133630,1750080636224,-500.0,0.00021438,2]
[366133631,1750080636234,-500.0,0.00021438,2]
[366133632,1750080636243,-500.0,0.00021438,2]
[366133633,1750080636252,-500.0,0.00021438,2]
[366133634,1750080636262,-500.0,0.00021438,2]
[366133635,1750080636271,-500.0,0.00021438,2]
[366133636,1750080636280,-500.0,0.00021438,2]
[366133637,1750080636290,-500.0,0.00021438,2]
[366133638,1750080636299,-500.0,0.00021438,2]
[366133639,1750080636309,-500.0,0.00021438,2]
[366133640,1750080636319,-5330.03315526,0.00021456,2]
[366133641,1750080636328,-336.72,0.00021524,3]
[366133642,1750080636338,-722.63519115,0.00021555,5]
[366133643,1750080636347,-263.0,0.00021628,2]
[366133644,1750080636356,-673.44,0.00021633,3]
[366133645,1750080636365,-500.0,0.00021642,3]
[366133646,1750080636375,-460.0,0.00021643,2]
[366133647,1750080636386,-581.12,0.00021643,4]
[366133648,1750080636396,-460.0,0.00021643,4]
[366133649,1750080636406,-639.13,0.00021643,4]
[366133650,1750080636415,-460.0,0.00021643,4]
[366133651,1750080636424,-589.42,0.00021643,4]
[366133652,1750080636434,-846.16,0.00021643,4]
[366133653,1750080636443,-555.5692552,0.00021643,4]
[366133654,1750080636453,-977.15,0.00021643,4]
[366133655,1750080636463,-950.82,0.00021643,4]
[366133656,1750080636472,-514.48,0.00021643,4]
[366133657,1750080636481,-530.28,0.00021643,4]
[366133658,1750080636492,-216946.82813803,0.00021663,2]
[366133669,1750080638112,-460.0,0.00019178,2]
[366133670,1750080638122,-461.74295904,0.00019178,2]
[366133671,1750080638133,-338928.63358197,0.00021663,2]
[366133672,1750080638143,-191.10589207,0.00021671,2]
[366133673,1750080638154,-500.0,0.00021671,2]
[366133674,1750080638163,-501.02761053,0.00021671,2]
[366133675,1750080638173,-500.0,0.00021671,2]
[366133676,1750080638183,-500.0,0.00021671,2]
[366133677,1750080638192,-501.03025202,0.00021671,2]
[366133678,1750080638203,-500.57447467,0.00021671,2]
[366133679,1750080638212,-500.0,0.00021671,2]
[366133680,1750080638223,-228.99678508,0.00021671,2]
[366133681,1750080638232,-263.82394904,0.00021671,2]
[366133682,1750080638242,-500.0,0.00021671,2]
[366133683,1750080638251,-505.55407804,0.00021673,2]
[366133684,1750080638261,-540.35500332,0.00021673,2]
[366133685,1750080638271,-500.57742139,0.00021673,2]
[366133686,1750080638281,-500.0,0.00021673,2]
[366133687,1750080638291,-500.0,0.00021673,2]
[366133688,1750080638302,-501.14966039,0.00021673,2]
[366133689,1750080638311,-501.96627452,0.00021673,2]
[366133690,1750080638321,-600.0,0.00021673,2]
[366133691,1750080638331,-500.0,0.00021673,2]
[366133692,1750080638340,-500.0,0.00021673,2]
[366133693,1750080638350,-522.88385943,0.00021673,2]
[366133694,1750080638359,-500.40548705,0.00021673,2]
[366133695,1750080638369,-500.0,0.00021673,2]
[366133696,1750080638380,-259.30897065,0.00021673,2]
[366133697,1750080638390,-501.40766852,0.00021673,2]
[366133698,1750080638400,-501.74147025,0.00021673,2]
[366133699,1750080638532,-500.0,0.00021673,2]
[366133700,1750080638543,-500.0,0.00021673,2]
[366133701,1750080638552,-500.0,0.00021673,2]
[366133702,1750080638563,-500.0,0.00021673,2]
[366133703,1750080638572,-10280.0360291,0.00021728,2]
[366133704,1750080638582,-722.63519115,0.00021762,5]
[366133705,1750080638592,-2535.94,0.00021776,2]
[366133706,1750080638602,-500.0,0.000218,2]
[366133707,1750080638612,-306.16737949,0.0002182,2]
[366133708,1750080638622,-500.0,0.0002182,2]
[366133709,1750080638631,-503.05474383,0.0002182,2]
[366133710,1750080638642,-500.0,0.0002182,2]
[366133711,1750080638652,-262.82536589,0.0002182,2]
[366133712,1750080638664,-580.8382188,0.0002182,2]
[366133713,1750080638674,-500.35628821,0.0002182,2]
[366133714,1750080638685,-500.0,0.0002182,2]
[366133715,1750080638695,-500.0,0.00021829,2]
[366133716,1750080638705,-500.0,0.00021845,2]
[366133717,1750080638715,-503.03400177,0.00021845,2]
[366133718,1750080638725,-501.01621883,0.00021845,2]
[366133719,1750080638736,-500.0,0.00021857,2]
[366133720,1750080638745,-500.0,0.00021857,2]
[366133721,1750080638756,-476.74458396,0.00021889,2]
[366133722,1750080638766,-500.37286074,0.00021889,2]
[366133723,1750080638777,-152.941664,0.00021889,2]
[366133724,1750080638787,-500.53333285,0.00021889,2]
[366133725,1750080638798,-500.0,0.00021889,2]
[366133726,1750080638808,-402.26154435,0.00021892,2]
[366133727,1750080638818,-500.0,0.00021917,2]
[366133728,1750080638828,-460.0,0.00021917,2]
[366133729,1750080638838,-581.12,0.00021917,4]
[366133730,1750080638848,-460.0,0.00021917,4]
[366133731,1750080638858,-639.13,0.00021917,4]
[366133732,1750080638868,-460.0,0.00021917,4]
[366133733,1750080638879,-589.42,0.00021917,4]
[366133734,1750080638895,-846.16,0.00021917,4]
[366133735,1750080638906,-977.15,0.00021917,4]
[366133736,1750080638917,-950.82,0.00021917,4]
[366133737,1750080638928,-514.48,0.00021917,4]
[366133738,1750080638939,-530.28,0.00021917,4]
[366133739,1750080638950,-500.0,0.00021918,2]
[366133740,1750080638961,-500.0,0.00021918,2]
[366133741,1750080638971,-500.0,0.00021918,2]
[366133742,1750080638982,-500.0,0.00021918,2]
[366133743,1750080638992,-500.0,0.00021918,2]
[366133744,1750080639002,-500.0,0.00021918,2]
[366133745,1750080639012,-285.0,0.00021918,2]
[366133746,1750080639022,-722.63519115,0.00021969,6]
[366133747,1750080639034,-5000.0,0.00021986,2]
[366133748,1750080639046,-178.0,0.00022,2]
[366133749,1750080639056,-501.10028268,0.00022009,2]
[366133750,1750080639066,-500.0,0.00022009,2]
[366133751,1750080639076,-500.0,0.00022009,2]
[366133752,1750080639087,-500.0,0.00022009,2]
[366133753,1750080639097,-500.0,0.00022009,2]
[366133754,1750080639106,-500.0,0.00022009,2]
[366133755,1750080639118,-500.0,0.00022009,2]
[366133756,1750080639129,-500.0,0.00022009,2]
[366133757,1750080639141,-722.63519115,0.00022176,6]
[366133758,1750080639151,-500.0,0.0002219,4]
[366133759,1750080639160,-460.0,0.00022191,2]
[366133760,1750080639169,-581.12,0.00022191,4]
[366133761,1750080639179,-460.0,0.00022191,4]
[366133762,1750080639188,-639.13,0.00022191,4]
[366133763,1750080639198,-460.0,0.00022191,4]
[366133764,1750080639207,-589.42,0.00022191,4]
[366133765,1750080639216,-846.16,0.00022191,4]
[366133766,1750080639226,-977.15,0.00022191,4]
[366133767,1750080639235,-950.82,0.00022191,4]
[366133768,1750080639245,-514.48,0.00022191,4]
[366133769,1750080639254,-530.28,0.00022191,4]
[366133770,1750080639264,-197.06690157,0.000222,69]
[366133771,1750080639274,-335.88837023,0.00022219,2]
[366133772,1750080639283,-500.0,0.00022219,2]
[366133773,1750080639293,-500.79031725,0.00022219,2]
[366133774,1750080639303,-1000.0,0.00022221,2]
[366133775,1750080639313,-188.49155914,0.00022306,2]
[366133776,1750080639322,-165.65308164,0.00022356,2]
[366133777,1750080639332,-406.0,0.00022371,2]
[366133778,1750080639341,-973.804,0.00022371,2]
[366133779,1750080639351,-722.63519115,0.00022383,7]
[366133780,1750080639361,-160.0,0.00022464,2]
[366133781,1750080639370,-500.0,0.00022465,2]
[366133782,1750080639379,-460.0,0.00022465,2]
[366133783,1750080639389,-581.12,0.00022465,4]
[366133784,1750080639399,-460.0,0.00022465,4]
[366133785,1750080639410,-639.13,0.00022465,4]
[366133786,1750080639420,-460.0,0.00022465,4]
[366133787,1750080639429,-589.42,0.00022465,4]
[366133788,1750080639439,-846.16,0.00022465,4]
[366133789,1750080639449,-977.15,0.00022465,4]
[366133790,1750080639458,-950.82,0.00022465,4]
[366133791,1750080639469,-514.48,0.00022465,4]
[366133792,1750080639479,-530.28,0.00022465,4]
[366133793,1750080639489,-159.769475,0.00022505,2]
[366133794,1750080639499,-5330.03315526,0.00022508,2]
[366133795,1750080639509,-5000.0,0.00022534,2]
[366133796,1750080639519,-165.65308164,0.00022548,2]
[366133797,1750080639529,-722.63519115,0.0002259,7]
[366133798,1750080639539,-310.11440415,0.00022739,2]
[366133799,1750080639549,-581.12,0.00022739,4]
[366133800,1750080639560,-460.0,0.00022739,4]
[366133801,1750080639571,-639.13,0.00022739,4]
[366133802,1750080639581,-460.0,0.00022739,4]
[366133803,1750080639590,-589.42,0.00022739,4]
[366133804,1750080639601,-846.16,0.00022739,4]
[366133805,1750080639610,-977.15,0.00022739,4]
[366133806,1750080639620,-950.82,0.00022739,4]
[366133807,1750080639630,-514.48,0.00022739,4]
[366133808,1750080639641,-530.28,0.00022739,4]
[366133809,1750080639651,-165.65308164,0.0002274,2]
[366133810,1750080639661,-3803.92,0.00022766,2]
[366133811,1750080639670,-722.63519115,0.00022797,7]
[366133812,1750080639680,-215.0738,0.00022807,2]
[366133813,1750080639690,-300.0,0.00022812,2]
[366133815,1750080639699,-165.65308164,0.00022932,2]
[366133816,1750080639710,-162.85516593,0.00022932,2]
[366133817,1750080639720,-162.85516593,0.00022932,2]
[366133818,1750080639730,-722.63519115,0.00023003,8]
[366133819,1750080639740,-500.0,0.00023013,2]
[366133820,1750080639750,-581.12,0.00023013,4]
[366133821,1750080639760,-460.0,0.00023013,4]
[366133822,1750080639769,-639.13,0.00023013,4]
[366133823,1750080639779,-460.0,0.00023013,4]
[366133824,1750080639789,-589.42,0.00023013,4]
[366133825,1750080639799,-846.16,0.00023013,4]
[366133826,1750080639810,-977.15,0.00023013,4]
[366133827,1750080639820,-950.82,0.00023013,4]
[366133828,1750080639830,-514.48,0.00023013,4]
[366133830,1750080639840,-530.28,0.00023013,4]
[366133832,1750080639850,-5000.0,0.00023032,2]
[366133833,1750080639859,-500.0,0.00023037,2]
[366133835,1750080639869,-600.0,0.0002304,2]
[366133837,1750080639880,-5000.0,0.00023082,2]
[366133839,1750080639889,-165.65308164,0.00023151,2]
[366133841,1750080639900,-188.49155914,0.00023178,2]
[366133843,1750080639910,-981.09,0.000232,2]
[366133844,1750080639921,-722.63519115,0.0002321,8]
[366133846,1750080639931,-3762.0,0.00023236,2]
[366133848,1750080639940,-1063.24869493,0.0002328,2]
[366133850,1750080639950,-581.12,0.00023287,4]
[366133852,1750080639959,-460.0,0.00023287,4]
[366133853,1750080639968,-639.13,0.00023287,4]
[366133855,1750080639978,-460.0,0.00023287,4]
[366133857,1750080639989,-589.42,0.00023287,4]
[366133859,1750080639998,-846.16,0.00023287,4]
[366133861,1750080640009,-977.15,0.00023287,4]
[366133863,1750080640018,-950.82,0.00023287,4]
[366133864,1750080640029,-514.48,0.00023287,4]
[366133866,1750080640046,-530.28,0.00023287,4]
[366133867,1750080640056,-500.0,0.00023295,2]
[366133868,1750080640066,-168.0,0.00023309,2]
[366133869,1750080640076,-10280.03602909,0.00023314,2]
[366133870,1750080640087,-500.0,0.00023324,2]
[366133871,1750080640100,-165.65308164,0.00023342,2]
[366133872,1750080640110,-293.85068442,0.00023358,2]
[366133873,1750080640120,-1091.1586212,0.0002337,2]
[366133874,1750080640130,-500.0,0.00023383,2]
[366133875,1750080640141,-160.0,0.00023384,3]
[366133876,1750080640150,-153.0,0.00023397,2]
[366133877,1750080640159,-153.0,0.00023397,2]
[366133878,1750080640169,-153.0,0.00023397,2]
[366133879,1750080640178,-153.0,0.00023397,2]
[366133880,1750080640188,-153.0,0.00023397,2]
[366133881,1750080640198,-153.0,0.00023397,2]
[366133882,1750080640208,-153.0,0.00023397,2]
[366133884,1750080640218,-153.0,0.00023397,2]
[366133886,1750080640227,-151.0,0.000234,10]
[366133887,1750080640237,-722.63519115,0.00023417,9]
[366133888,1750080640246,-500.0,0.00023422,2]
[366133889,1750080640256,-227.19582229,0.00023484,2]
[366133890,1750080640265,-639.0,0.000235,2]
[366133891,1750080640276,-1070.316869,0.0002352,3]
[366133892,1750080640286,-165.65308164,0.00023534,2]
[366133893,1750080640295,-5330.03315526,0.0002356,2]
[366133894,1750080640305,-505.0716492,0.00023561,2]
[366133895,1750080640315,-581.12,0.00023561,4]
[366133896,1750080640324,-460.0,0.00023561,4]
[366133897,1750080640334,-639.13,0.00023561,4]
[366133898,1750080640344,-460.0,0.00023561,4]
[366133899,1750080640353,-589.42,0.00023561,4]
[366133900,1750080640366,-846.16,0.00023561,4]
[366133901,1750080640375,-977.15,0.00023561,4]
[366133902,1750080640387,-950.82,0.00023561,4]
[366133903,1750080640397,-514.48,0.00023561,4]
[366133904,1750080640406,-530.28,0.00023561,4]
[366133905,1750080640416,-151.0,0.000236,7]
[366133906,1750080640425,-156.90249138,0.00023604,2]
[366133907,1750080640435,-2750.0,0.00023613,7]
[366133908,1750080640445,-800.0,0.00023622,2]
[366133909,1750080640454,-722.63519115,0.00023624,9]
[366133910,1750080640463,-5000.0,0.0002363,2]
[366133911,1750080640473,-34336.436392,0.00023643,2]
[366133912,1750080640483,-34336.436392,0.00023644,2]
[366133913,1750080640492,-800.0,0.0002366,2]
[366133914,1750080640501,-160.35931239,0.00023678,2]
[366133915,1750080640511,-34336.436392,0.00023679,2]
[366133916,1750080640520,-510.64888868,0.00023683,9]
[366133917,1750080640529,-34336.436392,0.00023689,2]
[366133918,1750080640541,-800.0,0.00023696,2]
[366133919,1750080640551,-151.0,0.000237,5]
[366133920,1750080640561,-222.81599158,0.00023709,2]
[366133921,1750080640571,-800.0,0.00023718,2]
[366133922,1750080640580,-800.0,0.00023723,2]
[366133923,1750080640590,-500.0,0.00023725,2]
[366133924,1750080640599,-2821.0903785,0.00023729,3]
[366133925,1750080640610,-155.0,0.00023729,2]
[366133926,1750080640619,-12500.0,0.00023738,3]
[366133927,1750080640629,-500.0,0.00023746,2]
[366133928,1750080640640,-12500.0,0.00023747,3]
[366133929,1750080640650,-5071.89,0.00023755,2]
[366133930,1750080640694,-12500.0,0.00023755,3]
[366133931,1750080640704,-12500.0,0.00023764,3]
[366133932,1750080640713,-12500.0,0.00023773,3]
[366133933,1750080640723,-12499.0,0.00023773,3]
[366133934,1750080640732,-500.0,0.00023779,2]
[366133935,1750080640742,-800.0,0.00023782,2]
[366133936,1750080640751,-28056.01563321,0.00023788,2]
[366133937,1750080640760,-50055.20103451,0.00023788,2]
[366133938,1750080640770,-64029.20603024,0.00023788,2]
[366133939,1750080640780,-424.54874296,0.000238,3]
[366133940,1750080640789,-160.0,0.000238,3]
[366133941,1750080640800,-13366.24786553,0.000238,2]
[366133942,1750080640810,-5028.70473067,0.000238,3]
[366133943,1750080640820,-835.67987521,0.000238,3]
[366133944,1750080640830,-12537.89035583,0.000238,3]
[366133945,1750080640840,-229.90125484,0.000238,3]
[366133946,1750080640849,-213.36025772,0.000238,3]
[366133948,1750080640859,-160.0,0.000238,3]
[366133949,1750080640869,-160.0,0.000238,3]
[366133950,1750080640878,-500.0,0.00023811,2]
[366133951,1750080640888,-722.63519115,0.00023831,10]
[366133953,1750080640898,-160.0,0.00023834,2]
[366133954,1750080640907,-581.12,0.00023835,4]
[366133955,1750080640916,-460.0,0.00023835,4]
[366133957,1750080640926,-639.13,0.00023835,4]
[366133958,1750080640935,-460.0,0.00023835,4]
[366133959,1750080640945,-589.42,0.00023835,4]
[366133961,1750080640955,-846.16,0.00023835,4]
[366133962,1750080640965,-977.15,0.00023835,4]
[366133963,1750080640974,-950.82,0.00023835,4]
[366133965,1750080640984,-514.48,0.00023835,4]
[366133967,1750080640993,-530.28,0.00023835,4]
[366133969,1750080641003,-800.0,0.00023854,2]
[366133971,1750080641012,-5000.0,0.00023856,2]
[366133973,1750080641022,-5000.0,0.00023856,2]
[366133975,1750080641033,-5000.0,0.00023856,2]
[366133977,1750080641043,-5000.0,0.00023856,2]
[366133979,1750080641053,-5000.0,0.00023856,2]
[366133981,1750080641062,-203.97122631,0.00023864,2]
[366133983,1750080641071,-24609.43,0.0002387,2]
[366133985,1750080641081,-160.0,0.00023871,4]
[366133987,1750080641091,-502.88363574,0.00023873,2]
[366133989,1750080641100,-70930.36139235,0.00023898,2]
[366133998,1750080641180,-2091.08331786,0.00023898,2]
[366134000,1750080641189,-151.0,0.00023898,7]
[366134002,1750080641200,-4414.077412,0.00023898,2]
[366134004,1750080641210,-4414.077412,0.00023898,2]
[366134006,1750080641219,-151.0,0.000239,5]
[366134008,1750080641229,-677.74080311,0.000239,2]
[366134010,1750080641238,-2282.3581112,0.000239,2]
[366134012,1750080641248,-1500.0,0.000239,2]
[366134013,1750080641257,-1500.0,0.000239,2]
[366134015,1750080641267,-1500.0,0.000239,2]
[366134018,1750080641279,-1746.0,0.0002391,3]
[366134020,1750080641288,-334.93634825,0.0002391,3]
[366134022,1750080641298,-500.0,0.00023917,2]
[366134024,1750080641309,-500.0,0.00023935,2]
[366134026,1750080641320,-2000.0,0.00023972,2]
[366134028,1750080641330,-635.50606811,0.00023972,2]
[366134030,1750080641343,-425.63351079,0.00023972,2]
[366134038,1750080641424,-477.01,0.00021653,3]
[366134040,1750080641437,-827.54,0.00023304,10]
[366134042,1750080641447,-1500.0,0.000239,2]
[366134044,1750080641457,-1500.0,0.000239,2]
[366134046,1750080641468,-1500.0,0.000239,2]
[366134048,1750080641478,-99.92889049,0.000239,2]
[366134053,1750080641516,557.0,0.00024658,120]
[366134222,1750080643118,-460.0,0.00019178,2]
[366134224,1750080643128,-954.02,0.00023023,3]
[366134226,1750080643139,-1400.07110951,0.000239,2]
[366134228,1750080643148,-1500.0,0.000239,2]
[366134230,1750080643158,-1500.0,0.000239,2]
[366134232,1750080643167,-938.8604211,0.00023972,2]
[366134234,1750080643177,-154.37469713,0.00023972,2]
[366134535,1750080646120,-460.0,0.00019178,2]
[366134537,1750080646131,-495.49,0.00019178,2]
[366134539,1750080646142,-150.02,0.00019452,2]
[366134541,1750080646152,-1500.0,0.000239,2]
[366134543,1750080646162,-1845.62530287,0.00023972,2]
[366134545,1750080646171,-2000.0,0.00023972,2]
[366134548,1750080646180,-2000.0,0.00023972,2]
[366134550,1750080646190,-2000.0,0.00023972,2]
[366134553,1750080646200,-2000.0,0.00023972,2]
[366134555,1750080646210,-2000.0,0.00023972,2]
[366134557,1750080646220,-2000.0,0.00023972,2]
[366134559,1750080646229,-2000.0,0.00023972,2]
[366134561,1750080646239,-1490.22144278,0.00023972,2]
[366134563,1750080646248,-4495.84062245,0.0002399,7]
[366135190,1750080876636,-166.6284359,0.00018074,2]
[366135191,1750080876659,-3.19503426,0.00018074,2]
[366135196,1750080972205,475.0,0.00018,2]
[366135197,1750080976029,5695.20771236,0.000246,120]
[366135198,1750080985416,539.82253503,0.00018,2]
[366135200,1750081050378,24900.0,0.00017913,2]
[366135201,1750081057839,150.0,0.00024658,120]
[366135202,1750081068963,-333.9726045,0.00018032,2]
[366135203,1750081083823,181.24622925,0.00017263,2]
[366135212,1750081344754,318.408904,0.00017795,2]
[366135213,1750081346835,-223.0,0.00018032,2]
[366135217,1750081529289,159.769476,0.00013699,2]
[366135220,1750081657680,4480.6773646,0.00017358,2]
[366135221,1750081662687,-164.79406157,0.00018032,2]
[366135233,1750081793804,-288.81150018,0.00018032,2]
[366135234,1750081794792,-279.39360101,0.00018032,2]
[366135254,1750081832335,-2056.2529752,0.00018032,2]
[366135256,1750081832344,-288.81150018,0.00018066,2]
[366135258,1750081832355,-211.0,0.00018165,2]
[366135260,1750081832364,-300.0,0.00018165,2]
[366135262,1750081832374,-300.0,0.00018165,2]
[366135264,1750081832383,-300.0,0.00018165,2]
[366135266,1750081832393,-1200.0,0.00018165,2]
[366135268,1750081832403,-500.0,0.00018165,2]
[366135270,1750081832413,-500.0,0.00018165,2]
[366135272,1750081832425,-500.0,0.00018165,2]
[366135274,1750081832437,-300.0,0.00018166,2]
[366135276,1750081832446,-500.0,0.00018166,2]
[366135278,1750081832455,-500.0,0.00018166,2]
[366135280,1750081832467,-500.0,0.00018166,2]
[366135282,1750081832476,-500.0,0.00018166,2]
[366135284,1750081832485,-500.0,0.00018166,2]
[366135300,1750081832641,-650.0,0.00018166,2]
[366135303,1750081832651,-644.0503663,0.00018166,2]
[366135304,1750081832660,-500.0,0.00018166,2]
[366135307,1750081832671,-186.67474246,0.00018166,2]
[366135309,1750081832682,-215.37192253,0.00018166,2]
[366135317,1750081832759,-500.0,0.00018165,2]
[366135319,1750081832770,-160.28414998,0.00018166,2]
[366135321,1750081832780,-500.0,0.00018166,2]
[366135323,1750081832790,-500.0,0.00018166,2]
[366135325,1750081832800,-500.0,0.00018166,2]
[366135327,1750081832812,-500.0,0.00018166,2]
[366135329,1750081832822,-500.0,0.00018166,2]
[366135331,1750081832831,-500.0,0.00018166,2]
[366135333,1750081832841,-359.7857466,0.00018166,2]
[366135335,1750081832850,-500.0,0.00018166,2]
[366135337,1750081832861,-500.0,0.00018166,2]
[366135339,1750081832870,-500.0,0.00018166,2]
[366135341,1750081832880,-500.0,0.00018166,2]
[366135343,1750081832889,-500.0,0.00018166,2]
[366135345,1750081832899,-500.0,0.00018166,2]
[366135347,1750081832909,-500.0,0.00018166,2]
[366135349,1750081832918,-500.0,0.00018166,2]
[366135351,1750081832929,-500.0,0.00018166,2]
[366135353,1750081832939,-500.0,0.00018166,2]
[366135354,1750081832950,-500.0,0.00018166,2]
[366135355,1750081832960,-500.0,0.00018166,2]
[366135356,1750081832970,-1000.0,0.00018176,2]
[366135357,1750081832979,-1000.0,0.00018176,2]
[366135358,1750081832989,-349.74474131,0.00018326,2]
[366135359,1750081832998,-255.0,0.0001861,2]
[366135362,1750081833008,-255.0,0.00018615,2]
[366135363,1750081833018,-306.07106305,0.0001862,2]
[366135365,1750081833028,-439.6411971,0.00018924,2]
[366135367,1750081833038,-500.0,0.00018924,2]
[366135369,1750081833049,-159.71985028,0.00018939,2]
[366135371,1750081833059,-500.0,0.00018982,2]
[366135373,1750081833070,-500.0,0.00018984,2]
[366135375,1750081833081,-288.81150018,0.00019046,2]
[366135377,1750081833091,-185.87251059,0.00019078,2]
[366135379,1750081833103,-500.0,0.00019125,2]
[366135381,1750081833114,-505.27602575,0.00019125,2]
[366135383,1750081833124,-460.0,0.00019178,2]
[366135384,1750081833135,-588.0,0.00019178,2]
[366135385,1750081833146,-460.0,0.00019178,2]
[366135387,1750081833156,-460.0,0.00019178,2]
[366135389,1750081833167,-165.8684,0.00019178,2]
[366135391,1750081833179,-460.0,0.00019178,2]
[366135393,1750081833189,-553.05750101,0.00019178,2]
[366135394,1750081833200,-460.0,0.00019178,2]
[366135395,1750081833210,-460.0,0.00019178,2]
[366135397,1750081833221,-440.0,0.00019178,2]
[366135399,1750081833231,-400.0,0.00019178,2]
[366135401,1750081833241,-380.02280269,0.00019178,2]
[366135403,1750081833252,-460.0,0.00019178,2]
[366135404,1750081833263,-420.0,0.00019178,2]
[366135405,1750081833274,-460.0,0.00019178,2]
[366135406,1750081833285,-460.0,0.00019178,2]
[366135407,1750081833310,-360.0,0.00019178,2]
[366135408,1750081833323,-247.97760362,0.00019178,2]
[366135409,1750081833335,-460.0,0.00019178,2]
[366135410,1750081833347,-390.0,0.00019178,2]
[366135411,1750081833358,-584.878,0.00019178,2]
[366135412,1750081833369,-460.0,0.00019178,2]
[366135413,1750081833379,-347.25318973,0.00019178,2]
[366135414,1750081833390,-380.0,0.00019178,2]
[366135415,1750081833400,-460.0,0.00019178,2]
[366135416,1750081833411,-460.0,0.00019178,2]
[366135417,1750081833426,-390.89750212,0.00019178,2]
[366135418,1750081833437,-283.40367879,0.00019178,2]
[366135419,1750081833448,-460.0,0.00019178,2]
[366135420,1750081833458,-460.0,0.00019178,2]
[366135421,1750081833471,-460.0,0.00019178,2]
[366135422,1750081833481,-460.0,0.00019178,2]
[366135423,1750081833492,-460.0,0.00019178,2]
[366135424,1750081833504,-460.0,0.00019178,2]
[366135425,1750081833515,-460.0,0.00019178,2]
[366135426,1750081833528,-504.05,0.00019178,2]
[366135427,1750081833539,-460.0,0.00019178,2]
[366135428,1750081833550,-460.0,0.00019178,2]
[366135429,1750081833560,-460.0,0.00019178,2]
[366135430,1750081833571,-460.0,0.00019178,2]
[366135431,1750081833581,-460.0,0.00019178,2]
[366135432,1750081833592,-446.12927608,0.00019178,2]
[366135433,1750081833603,-460.0,0.00019178,2]
[366135434,1750081833613,-460.0,0.00019178,2]
[366135435,1750081833625,-460.0,0.00019178,2]
[366135436,1750081833635,-460.0,0.00019178,2]
[366135437,1750081833645,-493.59,0.00019178,2]
[366135438,1750081833657,-460.0,0.00019178,2]
[366135439,1750081833667,-460.0,0.00019178,2]
[366135440,1750081833678,-460.0,0.00019178,2]
[366135441,1750081833689,-460.0,0.00019178,2]